bitfinex/quotes_BTCUSD_20240712
["timestamp","ask_amount","ask_price","bid_price","bid_amount"]
[1720768839438,1.0370515,57283.0,57282.0,0.00091299]
[1720768839897,0.872872,57282.0,57281.0,0.00091299]
[1720768840635,0.972872,57282.0,57281.0,0.00091299]
[1720768841221,1.322021,57282.0,57281.0,0.00091299]
[1720768841804,1.322021,57282.0,57281.0,0.003]
[1720768842257,1.4542231,57282.0,57281.0,0.00391299]
[1720768842425,1.8033721,57282.0,57281.0,0.003]
[1720768842624,1.8033721,57282.0,57269.0,0.00091299]
[1720768842625,0.873055,57270.0,57269.0,0.00091299]
[1720768842869,0.523852,57268.0,57267.0,0.00091299]
[1720768843015,0.973087,57268.0,57267.0,0.00091299]
[1720768843225,1.322322,57268.0,57267.0,0.00091299]
[1720768843435,0.873102,57267.0,57266.0,0.08511435]
[1720768843634,0.973102,57267.0,57266.0,0.08511435]
[1720768843834,1.322343,57267.0,57266.0,0.08511435]
[1720768844874,1.222406,57264.0,57263.0,0.009108]
[1720768845088,1.322406,57264.0,57263.0,0.009108]
[1720768845628,1.33750232,57264.0,57263.0,0.009108]
[1720768846455,1.33750232,57264.0,57263.0,0.011108]
[1720768846660,1.50773972,57264.0,57263.0,0.011108]
[1720768846866,1.50873972,57264.0,57263.0,0.011108]
[1720768847064,1.50773972,57264.0,57263.0,0.009108]
[1720768847463,1.35550232,57264.0,57263.0,0.009108]
[1720768847867,1.34550232,57264.0,57263.0,0.009108]
[1720768848155,1.35550232,57264.0,57263.0,0.009108]
[1720768848368,1.34550232,57264.0,57263.0,0.009108]
[1720768848588,1.33750232,57264.0,57263.0,0.009108]
[1720768848934,1.49147598,57264.0,57263.0,0.009108]
[1720768849487,1.83373498,57264.0,57263.0,0.009108]
[1720768849862,1.83873498,57264.0,57263.0,0.009108]
[1720768850077,2.08303498,57264.0,57263.0,0.009108]
[1720768850281,1.222557,57257.0,57256.0,0.0114757]
[1720768850486,1.671859,57257.0,57256.0,0.0114757]
[1720768850699,1.322557,57257.0,57256.0,0.0114757]
[1720768850877,1.33762861,57257.0,57256.0,0.0114757]
[1720768851319,1.35587559,57257.0,57256.0,0.0114757]
[1720768851694,1.15216115,57257.0,57256.0,0.0114757]
[1720768852250,1.00657359,57257.0,57256.0,0.0114757]
[1720768852451,1.35587559,57257.0,57256.0,0.0114757]
[1720768853058,1.35787559,57257.0,57256.0,0.0114757]
[1720768853263,1.18322459,57257.0,57256.0,0.0114757]
[1720768853603,1.35787559,57257.0,57256.0,0.0114757]
[1720768853897,1.49366315,57257.0,57256.0,0.0114757]
[1720768854630,1.35787559,57257.0,57256.0,0.0114757]
[1720768856275,0.03531859,57257.0,57256.0,0.24826773]
[1720768856481,0.03531859,57257.0,57256.0,0.83222973]
[1720768856482,0.01707161,57257.0,57256.0,0.83222973]
[1720768856696,0.002,57257.0,57256.0,0.83222973]
[1720768856905,0.002,57257.0,57256.0,0.83314272]
[1720768857121,0.19286398,57268.0,57267.0,0.09749203]
[1720768857367,0.19286398,57268.0,57267.0,0.18060638]
[1720768857572,0.20782847,57268.0,57267.0,0.18060638]
[1720768857996,0.55706347,57268.0,57267.0,0.18060638]
[1720768858654,0.873132,57265.0,57264.0,0.1437]
[1720768858864,0.873132,57265.0,57264.0,0.0788]
[1720768859278,0.873132,57265.0,57261.0,0.16371435]
[1720768859279,0.523906,57262.0,57261.0,0.16371435]
[1720768859483,0.973177,57262.0,57261.0,0.25920638]
[1720768859690,0.98818703,57262.0,57261.0,0.25920638]
[1720768860187,0.98818703,57262.0,57261.0,0.16371435]
[1720768860632,0.98918703,57262.0,57261.0,0.16371435]
[1720768860834,0.98918703,57262.0,57256.0,0.10696773]
[1720768860835,0.174651,57257.0,57256.0,0.10696773]
[1720768861038,0.623953,57257.0,57256.0,0.10696773]
[1720768861256,0.63895329,57257.0,57256.0,0.10696773]
[1720768861715,0.63895329,57257.0,57256.0,0.18706773]
[1720768861716,0.11500029,57257.0,57256.0,0.18706773]
[1720768861930,0.11500029,57257.0,57256.0,0.18798072]
[1720768862147,0.001,57262.0,57261.0,0.09549203]
[1720768862353,0.001,57262.0,57261.0,0.56124979]
[1720768862567,0.274621,57267.0,57266.0,0.09549203]
[1720768862774,0.01824698,57268.0,57267.0,0.41171203]
[1720768862988,0.174604,57273.0,57272.0,0.09549203]
[1720768863585,0.54205498,57273.0,57272.0,0.09549203]
[1720768864019,0.64205498,57273.0,57272.0,0.09549203]
[1720768864191,0.64205498,57273.0,57272.0,0.09449203]
[1720768864770,0.99225898,57273.0,57272.0,0.002]
[1720768865386,1.34146298,57273.0,57272.0,0.002]
[1720768865802,0.99325898,57273.0,57272.0,0.002]
[1720768866252,0.99325898,57273.0,57272.0,0.09649203]
[1720768866457,0.99225898,57273.0,57272.0,0.09649203]
[1720768866617,0.99125898,57273.0,57272.0,0.09449203]
[1720768866812,0.99125898,57273.0,57272.0,0.09649203]
[1720768867021,0.99125898,57273.0,57272.0,0.002]
[1720768867218,0.99125898,57273.0,57272.0,0.09449203]
[1720768867219,1.01867111,57273.0,57272.0,0.09449203]
[1720768867427,0.174614,57269.0,57268.0,0.09449203]
[1720768867625,0.523843,57269.0,57268.0,0.09449203]
[1720768867822,0.973072,57269.0,57268.0,0.09449203]
[1720768868028,0.623843,57269.0,57268.0,0.09449203]
[1720768869015,0.623843,57269.0,57268.0,0.17119203]
[1720768869677,0.973072,57269.0,57268.0,0.17119203]
[1720768870017,0.974072,57269.0,57268.0,0.09949203]
[1720768870223,1.324301,57269.0,57268.0,0.10149203]
[1720768871978,0.276614,57269.0,57268.0,0.10149203]
[1720768872174,0.625843,57269.0,57268.0,0.10149203]
[1720768872499,0.975072,57269.0,57268.0,0.10149203]
[1720768873359,0.975072,57269.0,57268.0,0.007]
[1720768873561,1.324301,57269.0,57268.0,0.007]
[1720768873763,1.324301,57269.0,57268.0,0.10149203]
[1720768873963,0.975072,57269.0,57268.0,0.10149203]
[1720768875367,0.625843,57269.0,57268.0,0.10149203]
[1720768875729,0.29166165,57269.0,57268.0,0.24239203]
[1720768875940,0.64089065,57269.0,57268.0,0.24239203]
[1720768877049,0.11704765,57269.0,57268.0,0.24239203]
[1720768877254,0.29166165,57269.0,57268.0,0.24239203]
[1720768879697,0.11704765,57269.0,57268.0,0.24239203]
[1720768879897,0.01704765,57269.0,57268.0,0.24239203]
[1720768886066,0.01704765,57269.0,57268.0,1.17897111]
[1720768886265,0.002,57269.0,57268.0,1.17897111]
[1720768886476,0.002,57269.0,57268.0,1.17988411]
[1720768886684,0.002,57269.0,57268.0,1.11639203]
[1720768887011,0.001,57269.0,57268.0,1.11439203]
[1720768887435,0.001,57269.0,57268.0,0.41592203]
[1720768887639,0.01359861,57269.0,57268.0,0.41592203]
[1720768887842,0.001,57269.0,57268.0,0.41192203]
[1720768888244,0.002,57269.0,57268.0,0.83115703]
[1720768888668,0.001,57269.0,57268.0,0.82115703]
[1720768889005,0.00033,57272.0,57271.0,0.09449203]
[1720768889410,0.01292861,57272.0,57271.0,0.09449203]
[1720768890686,0.01392861,57272.0,57271.0,0.10449203]
[1720768892417,0.01492861,57272.0,57271.0,0.11449203]
[1720768894608,0.88795361,57272.0,57271.0,0.02]
[1720768894814,0.88795361,57272.0,57271.0,0.11449203]
[1720768895215,1.23716361,57272.0,57271.0,0.11449203]
[1720768895836,1.23716361,57272.0,57271.0,0.02]
[1720768896849,1.23716361,57272.0,57271.0,0.11449203]
[1720768897456,0.18513482,57272.0,57271.0,0.11449203]
[1720768897663,0.523779,57276.0,57275.0,0.09449203]
[1720768898077,0.972966,57276.0,57275.0,0.09449203]
[1720768899019,0.972966,57276.0,57275.0,0.09949203]
[1720768899519,0.972966,57276.0,57275.0,0.005]
[1720768899718,0.973966,57276.0,57275.0,0.011]
[1720768900444,1.323153,57276.0,57275.0,0.011]
[1720768900646,1.323153,57276.0,57275.0,0.005]
[1720768900647,1.397453,57276.0,57275.0,0.005]
[1720768900822,1.397453,57276.0,57275.0,0.007]
[1720768901386,1.397453,57276.0,57275.0,0.002]
[1720768901588,1.397453,57276.0,57275.0,0.003]
[1720768901906,1.41569998,57276.0,57275.0,0.003]
[1720768902311,1.60724891,57276.0,57275.0,0.003]
[1720768903126,1.60724891,57276.0,57275.0,0.001]
[1720768903329,1.60924891,57276.0,57275.0,0.001]
[1720768903764,1.95843591,57276.0,57275.0,0.001]
[1720768904453,0.873072,57269.0,57268.0,0.09540503]
[1720768904651,0.973072,57269.0,57268.0,0.09540503]
[1720768905122,0.98182246,57269.0,57268.0,0.09540503]
[1720768905297,0.98182246,57269.0,57268.0,0.000913]
[1720768905490,0.88182246,57269.0,57268.0,0.000913]
[1720768905693,0.98182246,57269.0,57268.0,0.000913]
[1720768906261,0.98282246,57269.0,57268.0,0.006913]
[1720768906684,0.98382246,57269.0,57268.0,0.10840503]
[1720768909004,0.98382246,57269.0,57268.0,0.25150503]
[1720768909005,0.11075046,57269.0,57268.0,0.25150503]
[1720768909237,0.01075046,57269.0,57268.0,0.25150503]
[1720768909526,0.11075046,57269.0,57268.0,0.25150503]
[1720768909669,0.28536446,57269.0,57268.0,0.25150503]
[1720768910277,0.98382246,57269.0,57268.0,0.25150503]
[1720768911464,0.98382246,57269.0,57268.0,0.091913]
[1720768911865,1.33305146,57269.0,57268.0,0.013913]
[1720768915926,1.53537031,57269.0,57268.0,0.013913]
[1720768916143,1.82358046,57269.0,57268.0,0.013913]
[1720768917019,1.92358046,57269.0,57268.0,0.006913]
[1720768917219,2.11675412,57269.0,57268.0,0.006913]
[1720768917398,1.94082744,57269.0,57268.0,0.006913]
[1720768917600,1.94082744,57269.0,57259.0,0.00091299]
[1720768917601,1.22249,57260.0,57259.0,0.00091299]
[1720768917824,0.349302,57257.0,57256.0,0.0114757]
[1720768917959,1.222557,57257.0,57256.0,0.0114757]
[1720768918387,1.23127685,57257.0,57256.0,0.10596773]
[1720768918593,0.88197485,57257.0,57256.0,0.24266773]
[1720768919212,0.53267285,57257.0,57256.0,0.24566773]
[1720768919664,0.53267285,57257.0,57256.0,0.24658073]
[1720768920008,0.63267285,57257.0,57256.0,0.24658073]
[1720768920485,0.10871985,57257.0,57256.0,0.24658073]
[1720768920674,0.00971985,57257.0,57256.0,0.25158073]
[1720768920880,0.88297485,57257.0,57256.0,0.25158073]
[1720768921854,0.88297485,57257.0,57256.0,0.11488073]
[1720768923750,0.18437085,57257.0,57256.0,0.11488073]
[1720768923956,0.53367285,57257.0,57256.0,0.11488073]
[1720768924601,0.88297485,57257.0,57256.0,0.11488073]
[1720768925986,1.23227685,57257.0,57256.0,0.11488073]
[1720768926182,1.23227685,57257.0,57256.0,0.0203887]
[1720768927250,1.72457885,57257.0,57256.0,0.0203887]
[1720768928011,1.89481625,57257.0,57256.0,0.0203887]
[1720768928431,1.89481625,57257.0,57256.0,0.0173887]
[1720768928639,1.89481625,57257.0,57256.0,0.0066285]
[1720768928640,2.70171225,57257.0,57256.0,0.0066285]
[1720768928839,0.174706,57239.0,57238.0,0.073108]
[1720768929055,0.98217066,57239.0,57238.0,0.009108]
[1720768929256,0.98217066,57239.0,57238.0,0.10360003]
[1720768930327,1.33158266,57239.0,57238.0,0.009108]
[1720768930496,1.46474003,57239.0,57238.0,0.009108]
[1720768930981,1.33258266,57239.0,57238.0,0.015108]
[1720768931792,0.11064066,57239.0,57238.0,0.26070003]
[1720768932014,0.00964066,57239.0,57238.0,0.25470003]
[1720768932216,0.1,57245.0,57244.0,0.06]
[1720768932428,0.11824698,57245.0,57244.0,0.23359203]
[1720768932633,0.30151829,57245.0,57244.0,0.23359203]
[1720768932846,0.12683129,57245.0,57244.0,0.23359203]
[1720768933282,0.12683129,57245.0,57244.0,0.23259203]
[1720768933699,0.02683129,57245.0,57244.0,0.23259203]
[1720768933916,0.02783129,57245.0,57244.0,0.23259203]
[1720768934127,0.01924698,57245.0,57244.0,0.23259203]
[1720768934334,0.01924698,57245.0,57244.0,0.23159203]
[1720768934570,0.02785501,57245.0,57244.0,0.23159203]
[1720768935071,0.02785501,57245.0,57244.0,0.23359203]
[1720768935274,0.02785501,57245.0,57244.0,0.23159203]
[1720768935477,0.01924698,57245.0,57244.0,0.23159203]
[1720768935723,0.02886462,57245.0,57244.0,1.16504403]
[1720768936093,0.01924698,57245.0,57244.0,1.16504403]
[1720768936677,0.01924698,57245.0,57244.0,0.81566303]
[1720768937083,0.02024698,57245.0,57244.0,0.81566303]
[1720768937464,0.01824698,57245.0,57244.0,0.81566303]
[1720768937807,0.02024698,57245.0,57244.0,0.81866303]
[1720768938164,0.01924698,57245.0,57244.0,0.81566303]
[1720768938586,0.02024698,57245.0,57244.0,0.81866303]
[1720768938925,0.02024698,57245.0,57244.0,0.81566303]
[1720768939106,0.01924698,57245.0,57244.0,0.81566303]
[1720768939315,0.02024698,57245.0,57244.0,0.81966303]
[1720768939547,0.02024698,57245.0,57244.0,0.82057602]
[1720768939548,0.02124698,57245.0,57244.0,0.82057602]
[1720768940297,0.02024698,57245.0,57244.0,0.82057602]
[1720768940500,0.349315,57255.0,57252.0,0.057]
[1720768940703,0.523965,57256.0,57255.0,0.09149203]
[1720768940909,0.174657,57255.0,57254.0,0.09149203]
[1720768941105,0.523971,57255.0,57254.0,0.09149203]
[1720768942349,0.5239037,57255.0,57254.0,0.09149203]
[1720768942552,0.5239037,57255.0,57254.0,0.09649203]
[1720768942553,0.5249037,57255.0,57254.0,0.09649203]
[1720768942760,0.6249037,57255.0,57254.0,0.09649203]
[1720768943618,0.6239037,57255.0,57254.0,0.09649203]
[1720768944010,0.6249037,57255.0,57254.0,0.09649203]
[1720768944212,0.6249037,57255.0,57254.0,0.005]
[1720768944213,1.77316717,57255.0,57254.0,0.005]
[1720768944424,0.524118,57239.0,57238.0,0.10060003]
[1720768944777,0.624118,57239.0,57238.0,0.10060003]
[1720768944981,0.624118,57239.0,57238.0,0.009108]
[1720768945242,2.21335248,57239.0,57238.0,0.009108]
[1720768945414,1.326068,57233.0,57232.0,0.001]
[1720768945641,1.675516,57233.0,57232.0,0.001]
[1720768945823,1.78079452,57233.0,57232.0,0.001]
[1720768946180,1.77779452,57233.0,57232.0,0.001]
[1720768946387,0.97362,57233.0,57232.0,0.001]
[1720768946598,0.97762,57233.0,57232.0,0.001]
[1720768947040,1.327068,57233.0,57232.0,0.001]
[1720768947251,1.326068,57233.0,57232.0,0.001]
[1720768947677,1.675516,57233.0,57232.0,0.001]
[1720768947850,1.8457534,57233.0,57232.0,0.001]
[1720768948486,1.330068,57233.0,57232.0,0.001]
[1720768948660,1.35539533,57233.0,57232.0,0.002]
[1720768949059,1.34639533,57233.0,57232.0,0.001]
[1720768949283,1.34639533,57233.0,57232.0,0.002]
[1720768949284,1.49103486,57233.0,57232.0,0.002]
[1720768949484,1.49003486,57233.0,57232.0,0.002]
[1720768949684,1.49003486,57233.0,57232.0,0.001]
[1720768949685,1.49303486,57233.0,57232.0,0.001]
[1720768949895,1.34539533,57233.0,57232.0,0.001]
[1720768950099,1.35839533,57233.0,57232.0,0.002]
[1720768950541,1.00894733,57233.0,57232.0,0.002]
[1720768950785,1.01734321,57233.0,57232.0,0.002]
[1720768950983,1.01734321,57233.0,57232.0,0.09349203]
[1720768951214,1.01734321,57233.0,57232.0,0.002]
[1720768951397,1.48846933,57233.0,57232.0,0.001]
[1720768951609,1.48746933,57233.0,57232.0,0.001]
[1720768951812,1.49546933,57233.0,57232.0,0.001]
[1720768952054,1.50246933,57233.0,57232.0,0.001]
[1720768952259,1.35779121,57233.0,57232.0,0.001]
[1720768952421,1.35079121,57233.0,57232.0,0.001]
[1720768952620,1.36579121,57233.0,57232.0,0.001]
[1720768952818,1.36579121,57233.0,57232.0,0.001913]
[1720768952819,1.35779121,57233.0,57232.0,0.001913]
[1720768953027,1.51437033,57233.0,57232.0,0.001913]
[1720768953239,1.59067033,57233.0,57232.0,0.001913]
[1720768953438,1.63367033,57233.0,57232.0,0.001913]
[1720768953635,1.64067033,57233.0,57232.0,0.001913]
[1720768953983,1.575543,57232.0,57231.0,0.0070263]
[1720768954213,2.04176057,57232.0,57231.0,0.0070263]
[1720768954441,2.15016197,57232.0,57231.0,0.00264646]
[1720768954612,2.15016197,57232.0,57219.0,0.00091299]
[1720768954613,0.92721599,57220.0,57219.0,0.00091299]
[1720768954841,0.92721599,57220.0,57211.0,0.01013]
[1720768954842,0.973942,57212.0,57211.0,0.01013]
[1720768955045,1.323519,57212.0,57211.0,0.01013]
[1720768955256,0.98231676,57212.0,57211.0,0.01013]
[1720768955485,0.98231676,57212.0,57211.0,0.09133]
[1720768955486,0.28316276,57212.0,57211.0,0.09133]
[1720768956176,0.11837476,57212.0,57211.0,0.17644435]
[1720768956361,0.01837476,57212.0,57211.0,0.26793638]
[1720768956559,0.02937476,57212.0,57211.0,0.26793638]
[1720768956776,0.021,57212.0,57211.0,0.50622282]
[1720768956972,0.02937476,57212.0,57211.0,1.26548882]
[1720768957206,0.011,57212.0,57211.0,1.26548882]
[1720768957615,0.011,57212.0,57211.0,0.91590582]
[1720768957773,0.011,57212.0,57211.0,1.46958882]
[1720768957946,0.00306353,57227.0,57211.0,0.53563182]
[1720768957947,0.51068611,57224.0,57211.0,0.53563182]
[1720768958153,0.349496,57226.0,57211.0,0.53563182]
[1720768958154,0.174761,57221.0,57220.0,0.08511435]
[1720768958352,0.174761,57221.0,57220.0,0.08211435]
[1720768958554,0.349477,57229.0,57223.0,0.09149203]
[1720768958761,0.00306353,57238.0,57221.0,0.0627]
[1720768958762,0.349468,57230.0,57227.0,0.17660638]
[1720768959115,0.13006966,57237.0,57224.0,0.0787]
[1720768959334,0.00306353,57236.0,57232.0,0.09149203]
[1720768959551,0.00306353,57236.0,57235.0,0.806954]
[1720768959735,0.3243,57259.0,57244.0,0.09049203]
[1720768960023,0.175517,57245.0,57244.0,0.08249203]
[1720768960262,0.175517,57245.0,57244.0,0.07549203]
[1720768960263,0.00083,57245.0,57244.0,0.07549203]
[1720768960469,0.00083,57245.0,57244.0,0.15559203]
[1720768960928,0.00083,57245.0,57244.0,0.74315644]
[1720768961130,0.00083,57245.0,57244.0,1.19253744]
[1720768961548,0.00083,57245.0,57244.0,1.54191844]
[1720768961752,0.00083,57245.0,57244.0,0.80345644]
[1720768961952,0.00083,57245.0,57244.0,1.15283744]
[1720768962555,0.00083,57245.0,57244.0,1.15683744]
[1720768963008,0.00083,57245.0,57244.0,1.50621844]
[1720768963209,0.00083,57245.0,57244.0,1.50221844]
[1720768963422,0.00183,57245.0,57244.0,1.61621844]
[1720768963548,0.00183,57245.0,57244.0,1.63021844]
[1720768963549,0.00283,57245.0,57244.0,1.63021844]
[1720768963753,0.00133,57245.0,57244.0,1.63021844]
[1720768964843,0.00033,57245.0,57244.0,1.61621844]
[1720768965196,0.00033,57245.0,57244.0,1.63021844]
[1720768965401,0.01824698,57253.0,57252.0,0.31015803]
[1720768965603,0.01824698,57253.0,57252.0,0.39527238]
[1720768966106,0.174645,57259.0,57258.0,0.07549203]
[1720768966305,0.274645,57259.0,57258.0,0.07549203]
[1720768966549,0.28316745,57259.0,57258.0,0.07549203]
[1720768967371,0.10852245,57259.0,57258.0,0.14669203]
[1720768968186,0.10852245,57259.0,57258.0,0.22949203]
[1720768968942,0.10852245,57259.0,57258.0,0.23749203]
[1720768969369,0.00852245,57259.0,57258.0,0.32260638]
[1720768969819,0.1,57263.0,57258.0,0.32260638]
[1720768970046,0.00852511,57259.0,57258.0,0.32260638]
[1720768970323,0.1,57263.0,57262.0,0.07549203]
[1720768970469,0.274632,57263.0,57262.0,0.07549203]
[1720768970919,0.274632,57263.0,57258.0,0.09349203]
[1720768970920,0.34672077,57263.0,57258.0,0.09349203]
[1720768971120,0.34672077,57263.0,57258.0,0.08549203]
[1720768971121,0.523935,57259.0,57258.0,0.08549203]
[1720768972039,0.873225,57259.0,57258.0,0.003]
[1720768972246,0.873225,57259.0,57251.0,0.07549203]
[1720768972247,0.523998,57252.0,57251.0,0.07549203]
[1720768972742,0.498998,57252.0,57251.0,0.07549203]
[1720768974939,0.174672,57250.0,57249.0,0.07549203]
[1720768975271,0.526998,57252.0,57251.0,0.02]
[1720768975488,0.976335,57252.0,57251.0,0.02]
[1720768975929,1.325672,57252.0,57251.0,0.011]
[1720768976103,0.873422,57246.0,57245.0,0.07549203]
[1720768976536,0.81399082,57246.0,57245.0,0.07549203]
[1720768976661,0.103,57252.0,57244.0,0.07549203]
[1720768976865,0.003,57249.0,57239.0,0.07549203]
[1720768977083,0.174715,57236.0,57235.0,0.14049203]
[1720768977308,0.524145,57236.0,57235.0,0.14049203]
[1720768977509,0.873575,57236.0,57235.0,0.14049203]
[1720768977886,0.174707,57239.0,57238.0,0.07549203]
[1720768978085,0.174707,57239.0,57238.0,0.16060638]
[1720768978629,0.349386,57244.0,57238.0,0.16060638]
[1720768978851,0.1,57245.0,57244.0,0.07549203]
[1720768978852,0.274688,57245.0,57244.0,0.07549203]
[1720768979380,0.1,57245.0,57244.0,0.07549203]
[1720768979593,0.003,57259.0,57244.0,0.07549203]
[1720768979594,0.174657,57255.0,57254.0,0.07549203]
[1720768979816,0.523971,57255.0,57254.0,0.07549203]
[1720768980504,0.174666,57252.0,57251.0,0.07549203]
[1720768980715,0.349314,57255.0,57248.0,0.08511435]
[1720768980716,0.53255335,57255.0,57254.0,0.16060638]
[1720768980932,0.523971,57255.0,57254.0,0.16060638]
[1720768981129,0.63255335,57255.0,57254.0,0.08511435]
[1720768981269,0.98186735,57255.0,57254.0,0.08511435]
[1720768981482,0.98186735,57255.0,57254.0,0.16060638]
[1720768982295,0.98186735,57255.0,57254.0,0.08511435]
[1720768982498,0.99186735,57255.0,57254.0,0.08611435]
[1720768982931,0.98186735,57255.0,57254.0,0.08511435]
[1720768983280,0.98286735,57255.0,57254.0,0.08511435]
[1720768983621,0.10958235,57255.0,57254.0,0.16060638]
[1720768983831,0.10958235,57255.0,57254.0,0.30509949]
[1720768983832,0.00958235,57255.0,57254.0,0.30509949]
[1720768984037,0.00958235,57255.0,57254.0,0.30160638]
[1720768984236,0.10958235,57255.0,57254.0,0.30160638]
[1720768987018,0.28423935,57255.0,57254.0,0.30160638]
[1720768987587,0.63355335,57255.0,57254.0,0.14701435]
[1720768987705,0.174666,57252.0,57251.0,0.07549203]
[1720768987907,0.523998,57252.0,57251.0,0.07549203]
[1720768988154,0.53259765,57252.0,57251.0,0.07549203]
[1720768988947,0.53259765,57252.0,57251.0,0.07849203]
[1720768989552,0.523998,57252.0,57251.0,0.07849203]
[1720768989750,0.174666,57252.0,57251.0,0.07849203]
[1720768989952,0.1,57255.0,57254.0,0.07549203]
[1720768990319,0.274657,57255.0,57254.0,0.07549203]
[1720768991333,0.523989,57253.0,57252.0,0.07549203]
[1720768991514,0.623989,57253.0,57252.0,0.07549203]
[1720768991721,0.973315,57253.0,57252.0,0.07549203]
[1720768992508,0.973315,57253.0,57250.0,0.07549203]
[1720768992509,0.349332,57252.0,57250.0,0.07549203]
[1720768992670,0.523998,57252.0,57251.0,0.07549203]
[1720768993066,0.87333,57252.0,57251.0,0.07549203]
[1720768995635,0.87333,57252.0,57251.0,0.07849203]
[1720768996058,0.174666,57252.0,57251.0,0.07849203]
[1720768996379,0.174666,57252.0,57251.0,0.07549203]
[1720768996586,0.274663,57253.0,57251.0,0.07549203]
[1720768996787,0.274663,57253.0,57252.0,0.07549203]
[1720768996788,0.623989,57253.0,57252.0,0.07549203]
[1720768997302,0.1,57253.0,57252.0,0.07549203]
[1720768997507,0.1,57254.0,57253.0,0.07549203]
[1720768998028,0.1,57254.0,57251.0,0.001]
[1720768998029,0.274655,57256.0,57255.0,0.07549203]
[1720768998237,0.00083,57259.0,57258.0,0.13549203]
[1720768998481,0.00083,57259.0,57258.0,0.22060638]
[1720768999287,0.00083,57259.0,57258.0,0.16060638]
[1720769000705,0.00083,57259.0,57258.0,0.5467471]
[1720769001136,0.00183,57259.0,57258.0,0.5567471]
[1720769001337,0.00183,57259.0,57258.0,0.56125438]
[1720769001584,0.00083,57259.0,57258.0,0.54325438]
[1720769001792,0.00083,57259.0,57258.0,0.55325438]
[1720769001994,0.00183,57259.0,57258.0,0.56125438]
[1720769002212,0.00183,57259.0,57258.0,0.31860638]
[1720769002418,0.00083,57259.0,57258.0,0.30860638]
[1720769002630,0.00083,57259.0,57258.0,0.32060638]
[1720769002834,0.00183,57259.0,57258.0,0.33460638]
[1720769004782,0.00083,57259.0,57258.0,0.32060638]
[1720769005070,0.00183,57259.0,57258.0,0.32260638]
[1720769005244,0.00183,57259.0,57258.0,0.33460638]
[1720769010657,0.00183,57259.0,57258.0,0.57274706]
[1720769010865,0.00183,57259.0,57258.0,0.92204306]
[1720769011077,0.00183,57259.0,57258.0,0.56925438]
[1720769011645,0.00183,57259.0,57258.0,0.91855038]
[1720769013369,0.00183,57259.0,57258.0,0.56925438]
[1720769014418,0.00183,57259.0,57258.0,0.91855038]
[1720769017041,0.33017245,57272.0,57271.0,0.07549203]
[1720769017234,0.50477745,57272.0,57271.0,0.07549203]
[1720769017446,0.51996033,57272.0,57271.0,0.07549203]
[1720769018201,0.174613,57270.0,57268.0,0.07549203]
[1720769018403,0.523826,57271.0,57270.0,0.07549203]
[1720769018839,0.174608,57271.0,57270.0,0.07549203]
[1720769019248,0.274608,57271.0,57270.0,0.07549203]
[1720769019565,0.01518288,57272.0,57271.0,0.07549203]
[1720769019783,0.00083,57275.0,57274.0,0.07549203]
[1720769019985,0.0162644,57275.0,57274.0,0.07549203]
[1720769020186,0.01907698,57275.0,57274.0,0.07549203]
[1720769022696,0.02207698,57275.0,57274.0,0.07549203]
[1720769026169,0.02207698,57275.0,57274.0,0.16060638]
[1720769027482,0.424446,57283.0,57282.0,0.07549203]
[1720769028207,0.424446,57283.0,57282.0,0.07449203]
[1720769028411,0.0753,57283.0,57282.0,0.07449203]
[1720769028562,0.349121,57287.0,57285.0,0.07449203]
[1720769028563,0.174565,57286.0,57285.0,0.07449203]
[1720769028772,0.52369,57286.0,57285.0,0.07449203]
[1720769028990,0.1902673,57286.0,57285.0,0.07349203]
[1720769029590,0.1902643,57286.0,57285.0,0.07349203]
[1720769029792,0.1952643,57286.0,57285.0,0.07349203]
[1720769030474,0.0207023,57286.0,57285.0,0.07349203]
[1720769031433,0.1157023,57286.0,57285.0,0.07349203]
[1720769031641,0.2902643,57286.0,57285.0,0.002]
[1720769031858,0.2902643,57286.0,57285.0,0.07549203]
[1720769032278,0.29004163,57286.0,57285.0,0.07549203]
[1720769032704,0.11547963,57286.0,57285.0,0.07549203]
[1720769032912,0.11547963,57286.0,57285.0,0.002]
[1720769032913,0.29004163,57286.0,57285.0,0.002]
[1720769033125,0.76046663,57286.0,57285.0,0.002]
[1720769033325,1.11359163,57286.0,57285.0,0.002]
[1720769033548,1.10959163,57286.0,57285.0,0.002]
[1720769034103,1.11359163,57286.0,57285.0,0.002]
[1720769034309,0.00828,57296.0,57285.0,1.08551903]
[1720769034512,0.00828,57296.0,57295.0,0.13759203]
[1720769034712,0.00828,57296.0,57295.0,0.21359203]
[1720769034911,0.00828,57296.0,57295.0,0.44812703]
[1720769035113,0.00828,57296.0,57295.0,0.79719703]
[1720769035317,0.00828,57296.0,57295.0,0.44812703]
[1720769035862,0.00828,57296.0,57295.0,0.80419703]
[1720769036184,0.00828,57296.0,57295.0,0.79719703]
[1720769036426,0.00828,57296.0,57295.0,0.81919703]
[1720769036623,0.00828,57296.0,57295.0,0.09549203]
[1720769036828,0.00828,57296.0,57295.0,0.022]
[1720769036829,0.182812,57296.0,57295.0,0.022]
[1720769037463,0.00828,57296.0,57295.0,0.09549203]
[1720769037845,0.00828,57296.0,57295.0,0.08349203]
[1720769038075,0.00828,57296.0,57295.0,0.23249203]
[1720769038460,0.00828,57296.0,57295.0,0.22249203]
[1720769038656,0.00828,57296.0,57295.0,0.21649203]
[1720769039141,0.00828,57296.0,57295.0,0.22549203]
[1720769039492,0.00828,57296.0,57295.0,0.22249203]
[1720769039851,0.00828,57296.0,57295.0,0.22449203]
[1720769040194,0.00828,57296.0,57295.0,0.45902703]
[1720769040399,0.00828,57296.0,57295.0,0.80809703]
[1720769040603,0.00828,57296.0,57295.0,1.15716703]
[1720769040799,0.00828,57296.0,57295.0,1.70623703]
[1720769041201,0.00828,57296.0,57295.0,1.81723703]
[1720769041615,0.00828,57296.0,57295.0,2.16630703]
[1720769041824,0.00828,57303.0,57302.0,1.34755903]
[1720769042028,0.00828,57303.0,57302.0,1.90068603]
[1720769042888,0.00828,57303.0,57302.0,1.70068603]
[1720769043113,0.00828,57303.0,57302.0,1.71468603]
[1720769043513,0.00828,57303.0,57302.0,1.72868603]
[1720769043834,0.00828,57303.0,57302.0,1.71468603]
[1720769044006,0.00628,57303.0,57302.0,1.72868603]
[1720769044592,0.00628,57303.0,57302.0,1.71468603]
[1720769045455,0.00628,57303.0,57302.0,1.72868603]